[Event "Late-Titled-Tuesday-Blitz-October-10-2023"]
[Site "Chess.com"]
[Date "2023.10.10"]
[Round "3"]
[White "Aygehovit1992"]
[Black "hansen"]
[Result "0-1"]
[WhiteElo "2693"]
[BlackElo "2924"]
[TimeControl "180+1"]
[EndTime "14:27:07 PDT"]
[Termination "hansen won on time"]

1. e4 {[%clk 0:02:58.2]} 1... e5 {[%clk 0:02:58.9]} 2. Nf3 {[%clk 0:02:57.8]}
2... Nc6 {[%clk 0:02:59.2]} 3. Bb5 {[%clk 0:02:58.4]} 3... a6 {[%clk 0:02:50.7]}
4. Ba4 {[%clk 0:02:58.5]} 4... Nf6 {[%clk 0:02:49]} 5. O-O {[%clk 0:02:58.7]}
5... Be7 {[%clk 0:02:48.1]} 6. d3 {[%clk 0:02:55.9]} 6... d6 {[%clk 0:02:46.2]}
7. c3 {[%clk 0:02:55.1]} 7... O-O {[%clk 0:02:45.9]} 8. Nbd2 {[%clk 0:02:53.9]}
8... Nd7 {[%clk 0:02:44.1]} 9. b4 {[%clk 0:02:47.3]} 9... Kh8 {[%clk 0:02:41.8]}
10. Bc2 {[%clk 0:02:36.7]} 10... f5 {[%clk 0:02:36.2]} 11. exf5 {[%clk
0:02:36.8]} 11... Nb6 {[%clk 0:02:36.4]} 12. Ne4 {[%clk 0:02:16.7]} 12... Bxf5
{[%clk 0:02:35.3]} 13. Ng3 {[%clk 0:02:12.8]} 13... Bg4 {[%clk 0:02:34.5]} 14.
Re1 {[%clk 0:02:00.9]} 14... Nd5 {[%clk 0:02:30.7]} 15. Bd2 {[%clk 0:01:57.3]}
15... Bxf3 {[%clk 0:02:30.8]} 16. gxf3 {[%clk 0:01:57.2]} 16... Bg5 {[%clk
0:02:30.2]} 17. Kh1 {[%clk 0:00:54.2]} 17... Bxd2 {[%clk 0:02:24]} 18. Qxd2
{[%clk 0:00:55.1]} 18... Qh4 {[%clk 0:02:23.8]} 19. Re4 {[%clk 0:00:53.8]} 19...
Qh3 {[%clk 0:02:14.9]} 20. Rg1 {[%clk 0:00:51.6]} 20... Rxf3 {[%clk 0:02:07.1]}
21. Bd1 {[%clk 0:00:47.3]} 21... Rf4 {[%clk 0:02:05.1]} 22. c4 {[%clk
0:00:39.2]} 22... Raf8 {[%clk 0:02:00.7]} 23. Rxf4 {[%clk 0:00:16.9]} 23... Nxf4
{[%clk 0:01:58.5]} 24. Bf3 {[%clk 0:00:14.7]} 24... Nd4 {[%clk 0:01:55]} 25. Be4
{[%clk 0:00:15.2]} 25... Rf6 {[%clk 0:01:34.6]} 26. Qe3 {[%clk 0:00:11.6]} 26...
c6 {[%clk 0:00:05.2]} 27. Nf1 {[%clk 0:00:10.2]} 27... Qh6 {[%clk 0:00:03.7]}
28. b5 {[%clk 0:00:04.8]} 28... axb5 {[%clk 0:00:02.3]} 29. cxb5 {[%clk
0:00:05.1]} 29... g6 {[%clk 0:00:02.8]} 30. bxc6 {[%clk 0:00:05.2]} 30... bxc6
{[%clk 0:00:03.7]} 31. a4 {[%clk 0:00:03.3]} 31... Kg7 {[%clk 0:00:03.3]} 32. a5
{[%clk 0:00:03.4]} 32... Nh3 {[%clk 0:00:03.8]} 33. f3 {[%clk 0:00:02.8]} 33...
Nxg1 {[%clk 0:00:03.6]} 34. Qxh6+ {[%clk 0:00:02.6]} 34... Kxh6 {[%clk
0:00:03.9]} 35. Kxg1 {[%clk 0:00:01.6]} 35... d5 {[%clk 0:00:04.1]} 0-1

[Event "Late-Titled-Tuesday-Blitz-October-10-2023"]
[Site "Chess.com"]
[Date "2023.10.10"]
[Round "3"]
[White "Eliwood44"]
[Black "albi1999"]
[Result "1-0"]
[WhiteElo "2479"]
[BlackElo "2636"]
[TimeControl "180+1"]
[EndTime "14:27:08 PDT"]
[Termination "Eliwood44 won on time"]

1. d4 {[%clk 0:02:59.9]} 1... e6 {[%clk 0:02:36.4]} 2. c4 {[%clk 0:02:44.1]}
2... Bb4+ {[%clk 0:02:35.8]} 3. Nd2 {[%clk 0:02:42.2]} 3... b6 {[%clk
0:02:31.2]} 4. a3 {[%clk 0:02:28.2]} 4... Bxd2+ {[%clk 0:02:31]} 5. Qxd2 {[%clk
0:02:25.8]} 5... Bb7 {[%clk 0:02:31.9]} 6. f3 {[%clk 0:02:24.3]} 6... f5 {[%clk
0:02:31.2]} 7. Nh3 {[%clk 0:02:23.3]} 7... Nf6 {[%clk 0:02:30.7]} 8. e3 {[%clk
0:02:20.8]} 8... O-O {[%clk 0:02:29.3]} 9. Bd3 {[%clk 0:02:21]} 9... a5 {[%clk
0:02:24.3]} 10. O-O {[%clk 0:02:19.9]} 10... a4 {[%clk 0:02:20.1]} 11. Qf2
{[%clk 0:02:16.4]} 11... c5 {[%clk 0:02:15.1]} 12. Bd2 {[%clk 0:02:16.2]} 12...
Nc6 {[%clk 0:02:12.2]} 13. Bc3 {[%clk 0:02:15]} 13... Qe7 {[%clk 0:02:05.9]} 14.
d5 {[%clk 0:02:13.9]} 14... exd5 {[%clk 0:02:00.4]} 15. cxd5 {[%clk 0:02:14.8]}
15... Ne5 {[%clk 0:01:44.3]} 16. Bxf5 {[%clk 0:02:10.8]} 16... Nxd5 {[%clk
0:01:39.8]} 17. Be4 {[%clk 0:02:02.6]} 17... Nxc3 {[%clk 0:01:29.8]} 18. Bxb7
{[%clk 0:02:01.9]} 18... Rab8 {[%clk 0:01:22.3]} 19. Ba6 {[%clk 0:02:00]} 19...
Ne4 {[%clk 0:01:16.4]} 20. Qc2 {[%clk 0:01:54]} 20... Nf6 {[%clk 0:01:12.3]} 21.
Bb5 {[%clk 0:01:45.9]} 21... d5 {[%clk 0:01:09.6]} 22. Rae1 {[%clk 0:01:42.4]}
22... Kh8 {[%clk 0:00:54.9]} 23. Nf4 {[%clk 0:01:41.2]} 23... c4 {[%clk
0:00:43.5]} 24. Qd2 {[%clk 0:01:35]} 24... Rbd8 {[%clk 0:00:30.9]} 25. Bxa4
{[%clk 0:01:33.9]} 25... g5 {[%clk 0:00:28.6]} 26. Nh3 {[%clk 0:01:30.1]} 26...
Nd3 {[%clk 0:00:25.3]} 27. Rd1 {[%clk 0:01:13.2]} 27... g4 {[%clk 0:00:19.3]}
28. Nf4 {[%clk 0:01:08.4]} 28... gxf3 {[%clk 0:00:18.1]} 29. Rxf3 {[%clk
0:01:03.6]} 29... Ne4 {[%clk 0:00:16.9]} 30. Qe2 {[%clk 0:00:57.9]} 30... Nxf4
{[%clk 0:00:11]} 31. exf4 {[%clk 0:00:55.5]} 31... d4 {[%clk 0:00:08.9]} 32.
Qxc4 {[%clk 0:00:49.8]} 32... Nc5 {[%clk 0:00:08.9]} 33. Bc2 {[%clk 0:00:39.5]}
33... d3 {[%clk 0:00:08.4]} 34. Bxd3 {[%clk 0:00:35.5]} 34... Rf6 {[%clk
0:00:08.4]} 35. Qc3 {[%clk 0:00:27.1]} 35... Ne4 {[%clk 0:00:03.9]} 36. Qe1
{[%clk 0:00:23.2]} 36... Qc5+ {[%clk 0:00:03.5]} 37. Kh1 {[%clk 0:00:20.4]}
37... Nd6 {[%clk 0:00:02.3]} 38. Rh3 {[%clk 0:00:15.1]} 38... Rf7 {[%clk
0:00:02.5]} 39. b4 {[%clk 0:00:12]} 1-0

[Event "Late-Titled-Tuesday-Blitz-October-10-2023"]
[Site "Chess.com"]
[Date "2023.10.10"]
[Round "3"]
[White "GaiozNigalidze"]
[Black "Noki102"]
[Result "0-1"]
[WhiteElo "2719"]
[BlackElo "2472"]
[TimeControl "180+1"]
[EndTime "14:27:10 PDT"]
[Termination "Noki102 won by checkmate"]

1. d4 {[%clk 0:03:00.9]} 1... d5 {[%clk 0:03:00.2]} 2. c4 {[%clk 0:03:01.4]}
2... e6 {[%clk 0:03:00.2]} 3. Nc3 {[%clk 0:02:56.3]} 3... Nf6 {[%clk 0:03:00]}
4. cxd5 {[%clk 0:02:56.5]} 4... exd5 {[%clk 0:02:59.9]} 5. Bg5 {[%clk
0:02:56.9]} 5... a6 {[%clk 0:03:00.1]} 6. e3 {[%clk 0:02:56.7]} 6... Be6 {[%clk
0:02:55.2]} 7. Qb3 {[%clk 0:02:55.3]} 7... Nbd7 {[%clk 0:02:54.3]} 8. Nf3 {[%clk
0:02:38.7]} 8... c5 {[%clk 0:02:36.8]} 9. dxc5 {[%clk 0:02:32.7]} 9... Nxc5
{[%clk 0:02:34.2]} 10. Qd1 {[%clk 0:02:32.9]} 10... Qb6 {[%clk 0:02:31.6]} 11.
Bxf6 {[%clk 0:02:30.5]} 11... gxf6 {[%clk 0:02:31.6]} 12. Be2 {[%clk 0:01:59.7]}
12... Ne4 {[%clk 0:02:27.8]} 13. O-O {[%clk 0:01:54.6]} 13... Nxc3 {[%clk
0:02:18.9]} 14. bxc3 {[%clk 0:01:53]} 14... Bd6 {[%clk 0:02:19.3]} 15. Nd4
{[%clk 0:01:40.3]} 15... Qc7 {[%clk 0:02:10.8]} 16. g3 {[%clk 0:01:38.5]} 16...
O-O {[%clk 0:02:04]} 17. Bd3 {[%clk 0:01:36.8]} 17... Kg7 {[%clk 0:01:56.4]} 18.
Nxe6+ {[%clk 0:00:55.5]} 18... fxe6 {[%clk 0:01:56]} 19. Qg4+ {[%clk 0:00:55.8]}
19... Kf7 {[%clk 0:01:41.2]} 20. Bxh7 {[%clk 0:00:55.7]} 20... Ke7 {[%clk
0:01:32]} 21. Bd3 {[%clk 0:00:36.9]} 21... Rg8 {[%clk 0:01:28.6]} 22. Qe2 {[%clk
0:00:32.9]} 22... Rg5 {[%clk 0:01:22.3]} 23. e4 {[%clk 0:00:32.7]} 23... dxe4
{[%clk 0:01:09.1]} 24. Bxe4 {[%clk 0:00:33.1]} 24... Rag8 {[%clk 0:00:51]} 25.
Bg2 {[%clk 0:00:33.2]} 25... Bc5 {[%clk 0:00:43.2]} 26. Rae1 {[%clk 0:00:25.4]}
26... e5 {[%clk 0:00:24.9]} 27. Qe4 {[%clk 0:00:21.3]} 27... R8g7 {[%clk
0:00:20.1]} 28. Qxb7 {[%clk 0:00:16]} 28... Qxb7 {[%clk 0:00:19.8]} 29. Bxb7
{[%clk 0:00:16.9]} 29... Rh5 {[%clk 0:00:16.4]} 30. Re4 {[%clk 0:00:14.3]} 30...
Rgh7 {[%clk 0:00:15.3]} 31. h4 {[%clk 0:00:13.9]} 31... Rg7 {[%clk 0:00:14.4]}
32. Rc4 {[%clk 0:00:13.7]} 32... Rxg3+ {[%clk 0:00:10.2]} 33. Kh2 {[%clk
0:00:13.9]} 33... Rg7 {[%clk 0:00:09.8]} 34. Bc8 {[%clk 0:00:08.9]} 34... Bd6
{[%clk 0:00:08.6]} 35. Bh3 {[%clk 0:00:07.3]} 35... f5 {[%clk 0:00:08.3]} 36. f4
{[%clk 0:00:06.6]} 36... e4 {[%clk 0:00:08.2]} 37. Re1 {[%clk 0:00:02.8]} 37...
Rxh4 {[%clk 0:00:08.2]} 38. Re2 {[%clk 0:00:03.3]} 38... Bxf4+ {[%clk
0:00:08.3]} 39. Kh1 {[%clk 0:00:03]} 39... Rxh3+ {[%clk 0:00:08.7]} 40. Rh2
{[%clk 0:00:02.1]} 40... Rxh2# {[%clk 0:00:09.6]} 0-1

[Event "Late-Titled-Tuesday-Blitz-October-10-2023"]
[Site "Chess.com"]
[Date "2023.10.10"]
[Round "3"]
[White "Dontmesswithme_2"]
[Black "SaqoChess_Twitch"]
[Result "0-1"]
[WhiteElo "2419"]
[BlackElo "2624"]
[TimeControl "180+1"]
[EndTime "14:27:14 PDT"]
[Termination "SaqoChess_Twitch won by checkmate"]

1. d4 {[%clk 0:03:00.9]} 1... d5 {[%clk 0:03:00.1]} 2. c4 {[%clk 0:03:00.7]}
2... e6 {[%clk 0:03:00.3]} 3. Nf3 {[%clk 0:03:00.4]} 3... Nf6 {[%clk 0:03:00.8]}
4. g3 {[%clk 0:03:00.2]} 4... Be7 {[%clk 0:03:01.4]} 5. Bg2 {[%clk 0:03:00.2]}
5... O-O {[%clk 0:03:02.1]} 6. O-O {[%clk 0:02:56.8]} 6... dxc4 {[%clk
0:03:02.4]} 7. Qc2 {[%clk 0:02:56.5]} 7... a6 {[%clk 0:03:02.7]} 8. a4 {[%clk
0:02:56.1]} 8... c5 {[%clk 0:03:02.9]} 9. dxc5 {[%clk 0:02:52.5]} 9... Bxc5
{[%clk 0:03:03.8]} 10. Nbd2 {[%clk 0:02:49.2]} 10... b5 {[%clk 0:03:00.8]} 11.
axb5 {[%clk 0:02:44.9]} 11... Bb7 {[%clk 0:03:00.4]} 12. bxa6 {[%clk 0:02:31.8]}
12... Nxa6 {[%clk 0:03:00]} 13. Qxc4 {[%clk 0:02:17.9]} 13... Qc7 {[%clk
0:02:56.9]} 14. b3 {[%clk 0:02:09.2]} 14... Bd5 {[%clk 0:02:42.6]} 15. Qh4
{[%clk 0:02:07.7]} 15... Nb4 {[%clk 0:02:37.5]} 16. Bb2 {[%clk 0:01:57.6]} 16...
Rxa1 {[%clk 0:02:32.8]} 17. Bxa1 {[%clk 0:01:53.3]} 17... Be7 {[%clk 0:02:29.8]}
18. Bxf6 {[%clk 0:01:14.3]} 18... gxf6 {[%clk 0:02:25.6]} 19. Nd4 {[%clk
0:01:08.4]} 19... Bxg2 {[%clk 0:02:16.3]} 20. Kxg2 {[%clk 0:01:09.3]} 20... f5
{[%clk 0:02:13.8]} 21. Qh6 {[%clk 0:01:07.1]} 21... Nd5 {[%clk 0:01:49.7]} 22.
N2f3 {[%clk 0:01:04.3]} 22... Bf6 {[%clk 0:01:45]} 23. Rc1 {[%clk 0:00:52.3]}
23... Qb7 {[%clk 0:01:44.7]} 24. Nc6 {[%clk 0:00:46.9]} 24... Rc8 {[%clk
0:01:37.7]} 25. Ng5 {[%clk 0:00:38.8]} 25... Rxc6 {[%clk 0:01:22.3]} 26. Rxc6
{[%clk 0:00:30.6]} 26... Bg7 {[%clk 0:00:54.9]} 27. Qxh7+ {[%clk 0:00:23.3]}
27... Kf8 {[%clk 0:00:55.1]} 28. Qh5 {[%clk 0:00:17.9]} 28... Nf4+ {[%clk
0:00:31.6]} 29. gxf4 {[%clk 0:00:16.1]} 29... Qxc6+ {[%clk 0:00:32.2]} 30. f3
{[%clk 0:00:15.6]} 30... Qb7 {[%clk 0:00:30.8]} 31. Qh4 {[%clk 0:00:14.9]} 31...
Ke8 {[%clk 0:00:27.2]} 32. Qh7 {[%clk 0:00:13.8]} 32... Kf8 {[%clk 0:00:22.5]}
33. Qh4 {[%clk 0:00:13.6]} 33... Qxb3 {[%clk 0:00:19.8]} 34. Nh7+ {[%clk
0:00:13.1]} 34... Ke8 {[%clk 0:00:15.1]} 35. Qg5 {[%clk 0:00:13.6]} 35... Qb2
{[%clk 0:00:13.2]} 36. Kf2 {[%clk 0:00:10.9]} 36... Bd4+ {[%clk 0:00:13.8]} 37.
Kg3 {[%clk 0:00:11]} 37... Qa1 {[%clk 0:00:10.1]} 38. Qg8+ {[%clk 0:00:10.8]}
38... Ke7 {[%clk 0:00:08.4]} 39. Kh3 {[%clk 0:00:09.7]} 39... Qf1+ {[%clk
0:00:07.6]} 40. Qg2 {[%clk 0:00:08.9]} 40... Qe1 {[%clk 0:00:05.3]} 41. Ng5
{[%clk 0:00:08.1]} 41... Bf6 {[%clk 0:00:04.9]} 42. Nh7 {[%clk 0:00:05.8]} 42...
Qh4# {[%clk 0:00:05.2]} 0-1

[Event "Late-Titled-Tuesday-Blitz-October-10-2023"]
[Site "Chess.com"]
[Date "2023.10.10"]
[Round "3"]
[White "Nekoo04"]
[Black "FERNANDEZL1983"]
[Result "0-1"]
[WhiteElo "2276"]
[BlackElo "2538"]
[TimeControl "180+1"]
[EndTime "14:27:15 PDT"]
[Termination "FERNANDEZL1983 won on time"]

1. d4 {[%clk 0:03:00.9]} 1... Nf6 {[%clk 0:02:58.4]} 2. c4 {[%clk 0:03:01.8]}
2... g6 {[%clk 0:02:58.7]} 3. Nc3 {[%clk 0:03:01.5]} 3... Bg7 {[%clk 0:02:59.6]}
4. e4 {[%clk 0:03:01.8]} 4... d6 {[%clk 0:02:58.5]} 5. Nf3 {[%clk 0:03:02.2]}
5... O-O {[%clk 0:02:58.1]} 6. Be2 {[%clk 0:03:02.5]} 6... e5 {[%clk 0:02:58.2]}
7. d5 {[%clk 0:03:02.4]} 7... a5 {[%clk 0:02:56.4]} 8. O-O {[%clk 0:03:00.2]}
8... Na6 {[%clk 0:02:53]} 9. Bg5 {[%clk 0:02:59.2]} 9... h6 {[%clk 0:02:50.6]}
10. Bh4 {[%clk 0:02:58.9]} 10... g5 {[%clk 0:02:44.5]} 11. Bg3 {[%clk
0:02:58.1]} 11... Nh5 {[%clk 0:02:44.5]} 12. Nd2 {[%clk 0:02:56.7]} 12... Nf4
{[%clk 0:02:44.4]} 13. Re1 {[%clk 0:02:56.3]} 13... Qf6 {[%clk 0:02:42.3]} 14.
Nf1 {[%clk 0:01:52.4]} 14... Qg6 {[%clk 0:02:25.6]} 15. Ne3 {[%clk 0:01:49.9]}
15... f5 {[%clk 0:02:10.9]} 16. exf5 {[%clk 0:01:44.7]} 16... Bxf5 {[%clk
0:02:10.8]} 17. Nxf5 {[%clk 0:01:39.6]} 17... Qxf5 {[%clk 0:02:11.7]} 18. Bg4
{[%clk 0:01:38.4]} 18... Qg6 {[%clk 0:02:07.9]} 19. Ne4 {[%clk 0:01:12.8]} 19...
Nb4 {[%clk 0:01:37.3]} 20. Bxf4 {[%clk 0:00:42.2]} 20... exf4 {[%clk 0:01:29.9]}
21. a3 {[%clk 0:00:37.9]} 21... Na6 {[%clk 0:01:28.1]} 22. Rb1 {[%clk
0:00:35.9]} 22... Be5 {[%clk 0:01:25.3]} 23. b4 {[%clk 0:00:26.1]} 23... axb4
{[%clk 0:01:24]} 24. axb4 {[%clk 0:00:25.1]} 24... Qg7 {[%clk 0:01:13.9]} 25. c5
{[%clk 0:00:19.7]} 25... Rae8 {[%clk 0:00:56.7]} 26. Qc2 {[%clk 0:00:12.4]}
26... Qh7 {[%clk 0:00:54.3]} 27. Qc4 {[%clk 0:00:08.2]} 27... h5 {[%clk
0:00:51.6]} 28. Be6+ {[%clk 0:00:07.8]} 28... Kh8 {[%clk 0:00:45.3]} 29. c6
{[%clk 0:00:07.3]} 29... bxc6 {[%clk 0:00:17.7]} 30. Qxa6 {[%clk 0:00:06.8]}
30... cxd5 {[%clk 0:00:17.7]} 31. Bxd5 {[%clk 0:00:06.8]} 31... Qf5 {[%clk
0:00:17.8]} 32. Qe2 {[%clk 0:00:04.8]} 32... g4 {[%clk 0:00:17.3]} 33. f3 {[%clk
0:00:04]} 33... Bd4+ {[%clk 0:00:15.8]} 34. Kh1 {[%clk 0:00:04]} 34... Qxd5
{[%clk 0:00:13.9]} 35. Rbd1 {[%clk 0:00:02.3]} 35... Qe5 {[%clk 0:00:13.3]} 36.
Qd3 {[%clk 0:00:01.2]} 36... c5 {[%clk 0:00:11.8]} 37. bxc5 {[%clk 0:00:01.4]}
37... dxc5 {[%clk 0:00:12.7]} 0-1

[Event "Late-Titled-Tuesday-Blitz-October-10-2023"]
[Site "Chess.com"]
[Date "2023.10.10"]
[Round "3"]
[White "Dr_crypt"]
[Black "ritanovikova"]
[Result "1-0"]
[WhiteElo "2400"]
[BlackElo "2105"]
[TimeControl "180+1"]
[EndTime "14:27:16 PDT"]
[Termination "Dr_crypt won by resignation"]

1. d4 {[%clk 0:02:58.3]} 1... c5 {[%clk 0:02:59.3]} 2. c3 {[%clk 0:02:54.8]}
2... cxd4 {[%clk 0:02:57.8]} 3. cxd4 {[%clk 0:02:55.1]} 3... d5 {[%clk
0:02:57.8]} 4. Bf4 {[%clk 0:02:49.2]} 4... Nf6 {[%clk 0:02:53]} 5. e3 {[%clk
0:02:48.6]} 5... Bf5 {[%clk 0:02:48.4]} 6. Qb3 {[%clk 0:02:47.5]} 6... Qb6
{[%clk 0:02:45.4]} 7. Qxb6 {[%clk 0:02:44.6]} 7... axb6 {[%clk 0:02:45.5]} 8.
Nc3 {[%clk 0:02:44.8]} 8... e6 {[%clk 0:02:31.3]} 9. a3 {[%clk 0:02:40.6]} 9...
Bb4 {[%clk 0:02:24.5]} 10. Rc1 {[%clk 0:02:39.6]} 10... Bxc3+ {[%clk 0:02:22.8]}
11. Rxc3 {[%clk 0:02:39.3]} 11... Nc6 {[%clk 0:02:22.4]} 12. Bc7 {[%clk
0:02:34.4]} 12... Kd7 {[%clk 0:02:00.6]} 13. Bxb6 {[%clk 0:02:30.2]} 13... Ne4
{[%clk 0:01:59.3]} 14. Rc1 {[%clk 0:02:28.1]} 14... Rhc8 {[%clk 0:01:56.3]} 15.
Nf3 {[%clk 0:02:22]} 15... Nxd4 {[%clk 0:01:52.1]} 16. Rxc8 {[%clk 0:02:16.9]}
16... Nxf3+ {[%clk 0:01:43.2]} 17. gxf3 {[%clk 0:02:15.5]} 17... Rxc8 {[%clk
0:01:43]} 18. fxe4 {[%clk 0:02:14.8]} 18... Bxe4 {[%clk 0:01:42.7]} 19. Rg1
{[%clk 0:02:14.4]} 19... Rc1+ {[%clk 0:01:41.3]} 20. Kd2 {[%clk 0:02:13.2]}
20... Rc2+ {[%clk 0:01:41.4]} 21. Kd1 {[%clk 0:02:13.7]} 21... Rxb2 {[%clk
0:01:41.3]} 22. Bd4 {[%clk 0:02:00.7]} 22... Rb1+ {[%clk 0:01:40.9]} 23. Kd2
{[%clk 0:01:58.1]} 23... g6 {[%clk 0:01:36.5]} 24. f4 {[%clk 0:01:30.1]} 24...
Rb3 {[%clk 0:01:33.8]} 25. a4 {[%clk 0:01:27.4]} 25... Ra3 {[%clk 0:01:28.5]}
26. Bb5+ {[%clk 0:01:26.3]} 26... Kc8 {[%clk 0:01:20.3]} 27. Rc1+ {[%clk
0:01:26.3]} 27... Kb8 {[%clk 0:01:20.8]} 28. Be5+ {[%clk 0:01:23.4]} 28... Ka7
{[%clk 0:01:19.5]} 29. Rc8 {[%clk 0:01:22.1]} 29... Ra2+ {[%clk 0:01:10.6]} 30.
Kc1 {[%clk 0:01:19.5]} 30... Rxh2 {[%clk 0:01:06.9]} 31. Bd4+ {[%clk 0:01:17.9]}
31... b6 {[%clk 0:01:05.2]} 32. a5 {[%clk 0:01:08.4]} 32... Rh1+ {[%clk
0:01:01.6]} 33. Kb2 {[%clk 0:01:07.9]} 33... Rh2+ {[%clk 0:01:01.8]} 34. Kb3
{[%clk 0:01:07.2]} 34... Kb7 {[%clk 0:00:57.8]} 35. Rf8 {[%clk 0:01:01]} 35...
bxa5 {[%clk 0:00:57.1]} 36. Rxf7+ {[%clk 0:01:00.7]} 36... Kc8 {[%clk
0:00:49.1]} 37. Ba6+ {[%clk 0:00:57.2]} 37... Kd8 {[%clk 0:00:48.2]} 38. Bf6+
{[%clk 0:00:48.3]} 38... Ke8 {[%clk 0:00:47.7]} 39. Re7+ {[%clk 0:00:47.9]}
39... Kf8 {[%clk 0:00:47.9]} 40. Rxe6 {[%clk 0:00:48.1]} 40... d4 {[%clk
0:00:46.5]} 41. Rxe4 {[%clk 0:00:45.6]} 41... dxe3 {[%clk 0:00:43.7]} 42. Rxe3
{[%clk 0:00:40.4]} 42... Kf7 {[%clk 0:00:42.4]} 43. Bg5 {[%clk 0:00:40]} 43...
h6 {[%clk 0:00:42.3]} 44. Bc4+ {[%clk 0:00:39]} 44... Kf8 {[%clk 0:00:39.7]} 45.
Be7+ {[%clk 0:00:38.5]} 45... Kg7 {[%clk 0:00:39.3]} 46. Bd6 {[%clk 0:00:36.4]}
46... Kf6 {[%clk 0:00:38.4]} 47. f5 {[%clk 0:00:36.3]} 47... gxf5 {[%clk
0:00:33.5]} 48. Bxh2 {[%clk 0:00:35.7]} 1-0

[Event "Late-Titled-Tuesday-Blitz-October-10-2023"]
[Site "Chess.com"]
[Date "2023.10.10"]
[Round "3"]
[White "kaanadayhamle"]
[Black "Dedic8"]
[Result "0-1"]
[WhiteElo "2458"]
[BlackElo "2858"]
[TimeControl "180+1"]
[EndTime "14:27:17 PDT"]
[Termination "Dedic8 won by resignation"]

1. Nf3 {[%clk 0:02:47.3]} 1... d5 {[%clk 0:02:59.6]} 2. g3 {[%clk 0:02:48.2]}
2... Nf6 {[%clk 0:02:59.5]} 3. Bg2 {[%clk 0:02:47.9]} 3... c6 {[%clk 0:02:59.2]}
4. O-O {[%clk 0:02:46.9]} 4... Bg4 {[%clk 0:02:59.8]} 5. Ne5 {[%clk 0:02:46]}
5... Bf5 {[%clk 0:02:59.8]} 6. c4 {[%clk 0:02:45.4]} 6... Nbd7 {[%clk
0:02:59.1]} 7. Nxd7 {[%clk 0:02:45.5]} 7... Qxd7 {[%clk 0:02:59.4]} 8. cxd5
{[%clk 0:02:46.4]} 8... cxd5 {[%clk 0:02:59.7]} 9. d4 {[%clk 0:02:46.9]} 9... h5
{[%clk 0:02:57.8]} 10. h4 {[%clk 0:02:42.8]} 10... e6 {[%clk 0:02:53.7]} 11. Bf4
{[%clk 0:02:42]} 11... Be4 {[%clk 0:02:37.1]} 12. Nc3 {[%clk 0:02:39.3]} 12...
Bxg2 {[%clk 0:02:37]} 13. Kxg2 {[%clk 0:02:40.2]} 13... Bb4 {[%clk 0:02:36.5]}
14. Rc1 {[%clk 0:02:39.6]} 14... Rc8 {[%clk 0:02:29.8]} 15. Qb3 {[%clk
0:02:22.9]} 15... Bxc3 {[%clk 0:02:15.2]} 16. Rxc3 {[%clk 0:02:23.8]} 16... Rxc3
{[%clk 0:02:04.9]} 17. Qxc3 {[%clk 0:02:24.7]} 17... O-O {[%clk 0:02:02.3]} 18.
Rc1 {[%clk 0:02:19.2]} 18... Ne4 {[%clk 0:01:57]} 19. Qb3 {[%clk 0:02:16.8]}
19... Rc8 {[%clk 0:01:57.2]} 20. Rxc8+ {[%clk 0:01:59.2]} 20... Qxc8 {[%clk
0:01:57.2]} 21. f3 {[%clk 0:01:58.1]} 21... Nf6 {[%clk 0:01:57.9]} 22. Qc3
{[%clk 0:01:48.5]} 22... Qxc3 {[%clk 0:01:57]} 23. bxc3 {[%clk 0:01:49.4]} 23...
Kf8 {[%clk 0:01:47.2]} 24. Bd6+ {[%clk 0:01:47.2]} 24... Ke8 {[%clk 0:01:26.4]}
25. Be5 {[%clk 0:01:29.1]} 25... Ke7 {[%clk 0:01:26.3]} 26. Kf2 {[%clk
0:01:29.2]} 26... Ne8 {[%clk 0:01:26.4]} 27. Ke3 {[%clk 0:01:22.2]} 27... f6
{[%clk 0:01:24.4]} 28. Bf4 {[%clk 0:01:22.4]} 28... b5 {[%clk 0:00:51.1]} 29.
Kd3 {[%clk 0:01:20.8]} 29... a5 {[%clk 0:00:43.4]} 30. Kc2 {[%clk 0:01:14.2]}
30... Nd6 {[%clk 0:00:33.8]} 31. Bxd6+ {[%clk 0:01:00.5]} 31... Kxd6 {[%clk
0:00:34.7]} 32. a3 {[%clk 0:00:47.7]} 32... e5 {[%clk 0:00:33.7]} 33. Kd3 {[%clk
0:00:47.4]} 33... Ke6 {[%clk 0:00:29.2]} 34. Ke3 {[%clk 0:00:25]} 34... g5
{[%clk 0:00:20.6]} 35. dxe5 {[%clk 0:00:15.9]} 35... gxh4 {[%clk 0:00:20.3]} 36.
gxh4 {[%clk 0:00:16.8]} 36... fxe5 {[%clk 0:00:20.1]} 37. f4 {[%clk 0:00:13.3]}
37... exf4+ {[%clk 0:00:19.8]} 38. Kxf4 {[%clk 0:00:13.6]} 38... d4 {[%clk
0:00:19.6]} 39. cxd4 {[%clk 0:00:13.7]} 39... b4 {[%clk 0:00:20.1]} 40. axb4
{[%clk 0:00:13.8]} 40... a4 {[%clk 0:00:20.7]} 41. b5 {[%clk 0:00:13.5]} 41...
a3 {[%clk 0:00:20.3]} 42. b6 {[%clk 0:00:13.2]} 42... Kd7 {[%clk 0:00:20.8]} 43.
Kg5 {[%clk 0:00:12]} 43... a2 {[%clk 0:00:20.8]} 44. Kxh5 {[%clk 0:00:12.9]}
44... a1=Q {[%clk 0:00:21.3]} 45. Kg6 {[%clk 0:00:13.8]} 45... Qxd4 {[%clk
0:00:21.6]} 46. h5 {[%clk 0:00:14.7]} 46... Qxb6+ {[%clk 0:00:22]} 47. Kg7
{[%clk 0:00:15.5]} 47... Qd4+ {[%clk 0:00:22.3]} 48. Kh7 {[%clk 0:00:15.7]}
48... Ke7 {[%clk 0:00:22.4]} 49. e3 {[%clk 0:00:13.7]} 49... Qg4 {[%clk
0:00:20.3]} 50. h6 {[%clk 0:00:13.9]} 50... Kf7 {[%clk 0:00:20.6]} 0-1